[Event "Early-Titled-Tuesday-Blitz-October-03-2023"]
[Site "Chess.com"]
[Date "2023.10.03"]
[Round "9"]
[White "djano"]
[Black "OchsenfroschGambit"]
[Result "1-0"]
[WhiteElo "2675"]
[BlackElo "2489"]
[TimeControl "180+1"]
[EndTime "9:43:05 PDT"]
[Termination "djano won by resignation"]

1. e4 {[%clk 0:03:00.9]} 1... c5 {[%clk 0:02:58.4]} 2. Nc3 {[%clk 0:03:00.2]}
2... e6 {[%clk 0:02:58.7]} 3. f4 {[%clk 0:02:58.4]} 3... d5 {[%clk 0:02:58.6]}
4. Nf3 {[%clk 0:02:57.6]} 4... dxe4 {[%clk 0:02:57.9]} 5. Nxe4 {[%clk
0:02:55.7]} 5... Nc6 {[%clk 0:02:58.4]} 6. Bb5 {[%clk 0:02:55.3]} 6... Bd7
{[%clk 0:02:58]} 7. Qe2 {[%clk 0:02:54.7]} 7... Be7 {[%clk 0:02:50]} 8. b3
{[%clk 0:02:49.2]} 8... Nf6 {[%clk 0:02:47.9]} 9. Bb2 {[%clk 0:02:49.4]} 9... a6
{[%clk 0:02:36.9]} 10. Bxc6 {[%clk 0:02:45.2]} 10... Bxc6 {[%clk 0:02:37.8]} 11.
d3 {[%clk 0:02:32.2]} 11... O-O {[%clk 0:02:01.9]} 12. O-O {[%clk 0:02:31.7]}
12... Ng4 {[%clk 0:01:46.4]} 13. h3 {[%clk 0:02:21.5]} 13... Nh6 {[%clk
0:01:26.7]} 14. Ne5 {[%clk 0:02:16.5]} 1-0

[Event "Early-Titled-Tuesday-Blitz-October-03-2023"]
[Site "Chess.com"]
[Date "2023.10.03"]
[Round "9"]
[White "Djager97"]
[Black "falzehope0"]
[Result "1-0"]
[WhiteElo "2569"]
[BlackElo "2359"]
[TimeControl "180+1"]
[EndTime "9:43:05 PDT"]
[Termination "Djager97 won by resignation"]

1. e4 {[%clk 0:03:00.9]} 1... d5 {[%clk 0:02:59.6]} 2. exd5 {[%clk 0:03:00.9]}
2... Nf6 {[%clk 0:02:59.8]} 3. d4 {[%clk 0:03:00.4]} 3... Qxd5 {[%clk
0:02:59.8]} 4. Nc3 {[%clk 0:02:56.9]} 4... Qa5 {[%clk 0:02:59.4]} 5. Nf3 {[%clk
0:02:56.2]} 5... Bg4 {[%clk 0:02:58.3]} 6. h3 {[%clk 0:02:54.3]} 6... Qh5 {[%clk
0:02:42.1]} 7. hxg4 {[%clk 0:02:49.5]} 7... Qxh1 {[%clk 0:02:39.6]} 8. Ne2
{[%clk 0:02:50.1]} 8... Ne4 {[%clk 0:02:10.6]} 9. Qd3 {[%clk 0:02:49.7]} 9... f5
{[%clk 0:01:19.8]} 10. gxf5 {[%clk 0:02:50.6]} 10... Nxf2 {[%clk 0:01:07.8]} 11.
Kxf2 {[%clk 0:02:49.4]} 11... Qh5 {[%clk 0:01:04.6]} 12. Nf4 {[%clk 0:02:45.3]}
12... Qf7 {[%clk 0:00:58.5]} 13. Ne6 {[%clk 0:02:41.7]} 13... Nc6 {[%clk
0:00:38.2]} 14. Nxc7+ {[%clk 0:02:32.6]} 14... Kd7 {[%clk 0:00:37.5]} 15. Nxa8
{[%clk 0:02:33]} 15... Kc8 {[%clk 0:00:36]} 16. d5 {[%clk 0:02:30.5]} 16... g6
{[%clk 0:00:26.4]} 17. dxc6 {[%clk 0:02:28]} 17... gxf5 {[%clk 0:00:18.3]} 18.
Qd7+ {[%clk 0:02:26.4]} 1-0

[Event "Early-Titled-Tuesday-Blitz-October-03-2023"]
[Site "Chess.com"]
[Date "2023.10.03"]
[Round "9"]
[White "Krakozia"]
[Black "baki83"]
[Result "1-0"]
[WhiteElo "3019"]
[BlackElo "2830"]
[TimeControl "180+1"]
[EndTime "9:43:17 PDT"]
[Termination "Krakozia won by resignation"]

1. c4 {[%clk 0:03:00.9]} 1... e5 {[%clk 0:02:58.8]} 2. Nc3 {[%clk 0:03:00.2]}
2... Nc6 {[%clk 0:02:59.1]} 3. Nf3 {[%clk 0:02:59.2]} 3... g6 {[%clk 0:02:59.2]}
4. g3 {[%clk 0:02:56.8]} 4... Bg7 {[%clk 0:02:59.1]} 5. Bg2 {[%clk 0:02:57.4]}
5... Nf6 {[%clk 0:02:59]} 6. O-O {[%clk 0:02:56.8]} 6... O-O {[%clk 0:02:59]} 7.
d3 {[%clk 0:02:57]} 7... d6 {[%clk 0:02:58.2]} 8. Rb1 {[%clk 0:02:57.2]} 8... a5
{[%clk 0:02:58]} 9. b3 {[%clk 0:02:57]} 9... h6 {[%clk 0:02:55.9]} 10. Bb2
{[%clk 0:02:55.5]} 10... Nd4 {[%clk 0:02:54]} 11. Nxd4 {[%clk 0:02:49.5]} 11...
exd4 {[%clk 0:02:54]} 12. Nb5 {[%clk 0:02:48.3]} 12... c5 {[%clk 0:02:51.9]} 13.
Qd2 {[%clk 0:02:43.1]} 13... Re8 {[%clk 0:02:50.2]} 14. e3 {[%clk 0:02:39]}
14... dxe3 {[%clk 0:02:41.9]} 15. fxe3 {[%clk 0:02:39.5]} 15... a4 {[%clk
0:02:36.4]} 16. Qf2 {[%clk 0:02:26.9]} 16... Bf5 {[%clk 0:02:05.6]} 17. Bxf6
{[%clk 0:02:17.4]} 17... Bxf6 {[%clk 0:02:04]} 18. e4 {[%clk 0:02:15]} 18...
axb3 {[%clk 0:01:41.6]} 19. Rxb3 {[%clk 0:02:03]} 19... Ra5 {[%clk 0:01:14.1]}
20. exf5 {[%clk 0:01:54.8]} 20... Rxb5 {[%clk 0:01:13.5]} 21. fxg6 {[%clk
0:01:48.7]} 21... Rxb3 {[%clk 0:00:55.3]} 22. gxf7+ {[%clk 0:01:48.3]} 1-0

[Event "Early-Titled-Tuesday-Blitz-October-03-2023"]
[Site "Chess.com"]
[Date "2023.10.03"]
[Round "9"]
[White "vladoboch"]
[Black "whiteglovethief"]
[Result "1-0"]
[WhiteElo "2424"]
[BlackElo "2513"]
[TimeControl "180+1"]
[EndTime "9:43:28 PDT"]
[Termination "vladoboch won by resignation"]

1. e4 {[%clk 0:03:00.9]} 1... e6 {[%clk 0:02:48.2]} 2. d4 {[%clk 0:03:00.9]}
2... d5 {[%clk 0:02:48]} 3. e5 {[%clk 0:03:01.5]} 3... c5 {[%clk 0:02:47.8]} 4.
c3 {[%clk 0:03:01]} 4... Nc6 {[%clk 0:02:48.4]} 5. Nf3 {[%clk 0:03:01.6]} 5...
Bd7 {[%clk 0:02:48.9]} 6. Bd3 {[%clk 0:03:02.1]} 6... Qb6 {[%clk 0:02:48.1]} 7.
O-O {[%clk 0:03:00.2]} 7... cxd4 {[%clk 0:02:47.6]} 8. a3 {[%clk 0:03:00.3]}
8... Nge7 {[%clk 0:02:46.3]} 9. Re1 {[%clk 0:02:59]} 9... Ng6 {[%clk 0:02:46.3]}
10. h4 {[%clk 0:02:56.6]} 10... dxc3 {[%clk 0:02:40.3]} 11. Nxc3 {[%clk
0:02:56.3]} 11... h5 {[%clk 0:02:26.7]} 12. Nxd5 {[%clk 0:02:50]} 12... exd5
{[%clk 0:02:23.2]} 13. e6 {[%clk 0:02:50.3]} 13... O-O-O {[%clk 0:02:20.9]} 14.
exd7+ {[%clk 0:02:48.8]} 14... Kb8 {[%clk 0:02:20.3]} 15. Be3 {[%clk 0:02:40.3]}
15... Qc7 {[%clk 0:02:10.6]} 16. Bxg6 {[%clk 0:02:28.6]} 16... fxg6 {[%clk
0:02:09.5]} 17. Qxd5 {[%clk 0:02:13.4]} 17... Qxd7 {[%clk 0:02:08.3]} 18. Qxd7
{[%clk 0:02:12.8]} 18... Rxd7 {[%clk 0:02:08.3]} 19. Bf4+ {[%clk 0:02:13.4]}
19... Bd6 {[%clk 0:02:06.7]} 20. Rad1 {[%clk 0:02:13.6]} 20... Kc7 {[%clk
0:02:06.1]} 21. Rxd6 {[%clk 0:02:11.1]} 21... Rxd6 {[%clk 0:02:07]} 22. Re6
{[%clk 0:02:11.2]} 22... Rd8 {[%clk 0:02:07.1]} 23. Rxg6 {[%clk 0:02:11.5]}
23... Ne7 {[%clk 0:01:57.7]} 24. Rxg7 {[%clk 0:02:08.7]} 24... Kd7 {[%clk
0:01:58]} 25. Bxd6 {[%clk 0:01:48.9]} 25... Kxd6 {[%clk 0:01:58.9]} 26. Rg5
{[%clk 0:01:45]} 26... Rh8 {[%clk 0:01:57]} 27. Nd4 {[%clk 0:01:42.7]} 27... Nd5
{[%clk 0:01:55.3]} 28. g3 {[%clk 0:01:39.1]} 28... a6 {[%clk 0:01:53.2]} 29. Kg2
{[%clk 0:01:39.3]} 29... Kc5 {[%clk 0:01:48.7]} 30. Ne6+ {[%clk 0:01:36.8]}
30... Kc4 {[%clk 0:01:49.2]} 31. Ng7 {[%clk 0:01:31.8]} 31... Nf6 {[%clk
0:01:40.7]} 32. Rf5 {[%clk 0:01:32.4]} 32... Rh6 {[%clk 0:01:40.2]} 33. Rf3
{[%clk 0:01:28]} 33... Ne4 {[%clk 0:01:35.6]} 34. b3+ {[%clk 0:01:24.8]} 34...
Kd4 {[%clk 0:01:34.5]} 35. Nf5+ {[%clk 0:01:24.8]} 1-0

[Event "Early-Titled-Tuesday-Blitz-October-03-2023"]
[Site "Chess.com"]
[Date "2023.10.03"]
[Round "9"]
[White "DenLaz"]
[Black "temus_galaktionov"]
[Result "1-0"]
[WhiteElo "3067"]
[BlackElo "2879"]
[TimeControl "180+1"]
[EndTime "9:43:31 PDT"]
[Termination "DenLaz won by resignation"]

1. d4 {[%clk 0:03:00.9]} 1... c6 {[%clk 0:03:00.1]} 2. c4 {[%clk 0:03:00.7]}
2... g6 {[%clk 0:02:59.4]} 3. Nc3 {[%clk 0:02:58]} 3... Bg7 {[%clk 0:02:59]} 4.
Nf3 {[%clk 0:02:58]} 4... d6 {[%clk 0:02:59]} 5. e4 {[%clk 0:02:57.7]} 5... Nd7
{[%clk 0:02:57.3]} 6. g3 {[%clk 0:02:57.4]} 6... e5 {[%clk 0:02:57.5]} 7. Bg2
{[%clk 0:02:57.9]} 7... Ngf6 {[%clk 0:02:57.7]} 8. O-O {[%clk 0:02:58.1]} 8...
O-O {[%clk 0:02:57.7]} 9. h3 {[%clk 0:02:58.7]} 9... a5 {[%clk 0:02:57.6]} 10.
Be3 {[%clk 0:02:58.4]} 10... exd4 {[%clk 0:02:57.6]} 11. Nxd4 {[%clk 0:02:59.3]}
11... Nc5 {[%clk 0:02:57.8]} 12. Qc2 {[%clk 0:02:59.9]} 12... a4 {[%clk
0:02:58.1]} 13. Rad1 {[%clk 0:02:59.9]} 13... Qa5 {[%clk 0:02:58.1]} 14. Bf4
{[%clk 0:02:57.8]} 14... Rd8 {[%clk 0:02:56.7]} 15. Nf3 {[%clk 0:02:57.7]} 15...
Bf8 {[%clk 0:02:54.8]} 16. Bd2 {[%clk 0:02:50.1]} 16... Qa6 {[%clk 0:02:51.2]}
17. Bg5 {[%clk 0:02:48.4]} 17... Bg7 {[%clk 0:02:48.7]} 18. b3 {[%clk
0:02:20.5]} 18... axb3 {[%clk 0:02:43.9]} 19. axb3 {[%clk 0:02:21.4]} 19... Qb6
{[%clk 0:02:44.2]} 20. Rb1 {[%clk 0:02:14.5]} 20... h6 {[%clk 0:02:43.7]} 21.
Be3 {[%clk 0:02:11.1]} 21... Qb4 {[%clk 0:02:43.7]} 22. Bd2 {[%clk 0:02:09.9]}
22... Qb6 {[%clk 0:02:31]} 23. b4 {[%clk 0:02:08.2]} 23... Na6 {[%clk 0:02:28]}
24. Be3 {[%clk 0:02:04.1]} 24... Qc7 {[%clk 0:02:27.6]} 25. Qd2 {[%clk
0:01:58.7]} 25... Be6 {[%clk 0:02:21.9]} 26. Bxh6 {[%clk 0:01:50.6]} 26... Bxh6
{[%clk 0:02:18.4]} 27. Qxh6 {[%clk 0:01:50.2]} 27... Bxc4 {[%clk 0:02:18.7]} 28.
Rfd1 {[%clk 0:01:45]} 28... Qe7 {[%clk 0:02:17.3]} 29. Rd4 {[%clk 0:01:29.9]}
29... Be6 {[%clk 0:01:38.6]} 30. e5 {[%clk 0:01:27.7]} 30... Nh5 {[%clk
0:01:38.1]} 31. Ng5 {[%clk 0:01:22.8]} 31... dxe5 {[%clk 0:01:33]} 32. Qh7+
{[%clk 0:01:22]} 1-0

[Event "Early-Titled-Tuesday-Blitz-October-03-2023"]
[Site "Chess.com"]
[Date "2023.10.03"]
[Round "9"]
[White "inegrepus"]
[Black "taleslascando"]
[Result "1-0"]
[WhiteElo "2170"]
[BlackElo "2021"]
[TimeControl "180+1"]
[EndTime "9:43:35 PDT"]
[Termination "inegrepus won by resignation"]

1. d4 {[%clk 0:02:52.5]} 1... Nf6 {[%clk 0:02:54]} 2. c4 {[%clk 0:02:52.5]} 2...
g6 {[%clk 0:02:54.5]} 3. Nc3 {[%clk 0:02:51.9]} 3... Bg7 {[%clk 0:02:54.9]} 4.
e4 {[%clk 0:02:51.6]} 4... d6 {[%clk 0:02:52]} 5. Nf3 {[%clk 0:02:50.8]} 5...
O-O {[%clk 0:02:52.1]} 6. Be2 {[%clk 0:02:51.3]} 6... Nc6 {[%clk 0:02:52.2]} 7.
Be3 {[%clk 0:02:49.4]} 7... e5 {[%clk 0:02:50.2]} 8. d5 {[%clk 0:02:49.4]} 8...
Ne7 {[%clk 0:02:50.3]} 9. h3 {[%clk 0:02:48.5]} 9... Nd7 {[%clk 0:02:49.6]} 10.
g4 {[%clk 0:02:48.2]} 10... f5 {[%clk 0:02:29.6]} 11. gxf5 {[%clk 0:02:49.1]}
11... gxf5 {[%clk 0:02:29.6]} 12. Bg5 {[%clk 0:02:31.8]} 12... f4 {[%clk
0:02:22.2]} 13. Rg1 {[%clk 0:02:30.2]} 13... Kh8 {[%clk 0:02:22]} 14. Qd2 {[%clk
0:02:20.5]} 14... Nf6 {[%clk 0:02:11.2]} 15. O-O-O {[%clk 0:02:16.5]} 15... Bxh3
{[%clk 0:01:50]} 16. Rh1 {[%clk 0:02:14.8]} 16... Bg4 {[%clk 0:01:39]} 17. Rdg1
{[%clk 0:02:12.1]} 17... Qd7 {[%clk 0:01:29.7]} 18. Bxf6 {[%clk 0:01:54.3]}
18... Bxf6 {[%clk 0:01:23.6]} 19. Nxe5 {[%clk 0:01:54.3]} 19... Bxe5 {[%clk
0:01:16.5]} 20. Bxg4 {[%clk 0:01:53.6]} 20... Qe8 {[%clk 0:01:09.7]} 21. f3
{[%clk 0:01:50.3]} 21... c6 {[%clk 0:00:56.1]} 22. Qh2 {[%clk 0:01:49.5]} 22...
Qf7 {[%clk 0:00:50.8]} 23. Be6 {[%clk 0:01:49.6]} 23... Qg7 {[%clk 0:00:48.5]}
24. Rxg7 {[%clk 0:01:48.4]} 1-0

[Event "Early-Titled-Tuesday-Blitz-October-03-2023"]
[Site "Chess.com"]
[Date "2023.10.03"]
[Round "9"]
[White "Witik"]
[Black "hurricane7791"]
[Result "1-0"]
[WhiteElo "2837"]
[BlackElo "2701"]
[TimeControl "180+1"]
[EndTime "9:43:36 PDT"]
[Termination "Witik won by resignation"]

1. d4 {[%clk 0:02:58.9]} 1... Nf6 {[%clk 0:02:58.3]} 2. c4 {[%clk 0:02:58.6]}
2... e6 {[%clk 0:02:57.3]} 3. g3 {[%clk 0:02:58.8]} 3... c5 {[%clk 0:02:57.7]}
4. d5 {[%clk 0:02:58.5]} 4... exd5 {[%clk 0:02:58.6]} 5. cxd5 {[%clk 0:02:59.4]}
5... d6 {[%clk 0:02:59.5]} 6. Nc3 {[%clk 0:02:59.8]} 6... g6 {[%clk 0:03:00.4]}
7. Nf3 {[%clk 0:03:00.3]} 7... Bg7 {[%clk 0:03:01]} 8. Bg2 {[%clk 0:03:00.9]}
8... O-O {[%clk 0:03:01.9]} 9. O-O {[%clk 0:03:01.6]} 9... Na6 {[%clk
0:03:02.6]} 10. Nd2 {[%clk 0:02:57.3]} 10... Nc7 {[%clk 0:03:01.8]} 11. a4
{[%clk 0:02:40.3]} 11... b6 {[%clk 0:03:01.8]} 12. Nc4 {[%clk 0:02:33.7]} 12...
Ba6 {[%clk 0:03:01.4]} 13. Qb3 {[%clk 0:02:22.6]} 13... Bxc4 {[%clk 0:03:00.8]}
14. Qxc4 {[%clk 0:02:22.6]} 14... a6 {[%clk 0:02:59.9]} 15. Bf4 {[%clk
0:02:16.7]} 15... Qd7 {[%clk 0:02:57.3]} 16. b4 {[%clk 0:02:03.7]} 16... b5
{[%clk 0:02:56.3]} 17. Qb3 {[%clk 0:02:00]} 17... c4 {[%clk 0:02:39.8]} 18. Qc2
{[%clk 0:01:59.6]} 18... Nh5 {[%clk 0:02:28.7]} 19. Bd2 {[%clk 0:01:58.2]} 19...
a5 {[%clk 0:02:18.3]} 20. Rab1 {[%clk 0:01:53.7]} 20... axb4 {[%clk 0:02:14.8]}
21. Rxb4 {[%clk 0:01:53.1]} 21... bxa4 {[%clk 0:02:15.7]} 22. Nxa4 {[%clk
0:01:45.7]} 22... Nb5 {[%clk 0:01:45.4]} 23. Nb6 {[%clk 0:01:38.8]} 23... Nd4
{[%clk 0:01:45.5]} 24. Qxc4 {[%clk 0:01:36.5]} 24... Qe7 {[%clk 0:01:40.4]} 25.
Nxa8 {[%clk 0:01:31.5]} 25... Rxa8 {[%clk 0:01:41.3]} 26. e3 {[%clk 0:01:25.4]}
26... Nf5 {[%clk 0:01:36.6]} 27. g4 {[%clk 0:01:20]} 1-0

[Event "Early-Titled-Tuesday-Blitz-October-03-2023"]
[Site "Chess.com"]
[Date "2023.10.03"]
[Round "9"]
[White "FM_Kappeler"]
[Black "betta2004"]
[Result "1-0"]
[WhiteElo "2377"]
[BlackElo "2505"]
[TimeControl "180+1"]
[EndTime "9:43:49 PDT"]
[Termination "FM_Kappeler won by resignation"]

1. d4 {[%clk 0:03:00.9]} 1... e5 {[%clk 0:02:55.2]} 2. dxe5 {[%clk 0:03:00.2]}
2... Nc6 {[%clk 0:02:54.9]} 3. Nf3 {[%clk 0:03:00.1]} 3... Qe7 {[%clk
0:02:54.9]} 4. Bf4 {[%clk 0:02:58.8]} 4... Qb4+ {[%clk 0:02:55.3]} 5. Bd2 {[%clk
0:02:57.6]} 5... Qxb2 {[%clk 0:02:55.8]} 6. Nc3 {[%clk 0:02:57.4]} 6... Bb4
{[%clk 0:02:56.2]} 7. Rb1 {[%clk 0:02:37.2]} 7... Bxc3 {[%clk 0:02:56.3]} 8.
Rxb2 {[%clk 0:02:34.3]} 8... Bxb2 {[%clk 0:02:57.2]} 9. e3 {[%clk 0:02:27.9]}
9... Nxe5 {[%clk 0:02:55.5]} 10. Nxe5 {[%clk 0:02:24.9]} 10... Bxe5 {[%clk
0:02:56.4]} 11. Bd3 {[%clk 0:02:12.4]} 11... Ne7 {[%clk 0:02:56.1]} 12. O-O
{[%clk 0:02:11.6]} 12... O-O {[%clk 0:02:55.5]} 13. Qh5 {[%clk 0:02:05.6]} 13...
Ng6 {[%clk 0:02:49.6]} 14. Bxg6 {[%clk 0:01:57.1]} 14... Bxh2+ {[%clk
0:02:49.3]} 15. Kxh2 {[%clk 0:01:54.6]} 15... hxg6 {[%clk 0:02:50.2]} 16. Qc5
{[%clk 0:01:44.7]} 16... c6 {[%clk 0:02:48]} 17. Qd6 {[%clk 0:01:40.1]} 17...
Re8 {[%clk 0:02:47.7]} 18. Bb4 {[%clk 0:01:37]} 18... b6 {[%clk 0:02:46]} 19.
Rd1 {[%clk 0:01:34.4]} 19... c5 {[%clk 0:02:46.1]} 20. Bc3 {[%clk 0:01:30]}
20... Re6 {[%clk 0:02:45.2]} 21. Qc7 {[%clk 0:01:21.4]} 21... Re4 {[%clk
0:02:31.2]} 22. Qd8+ {[%clk 0:00:51.9]} 22... Kh7 {[%clk 0:02:30.3]} 23. Qf8
{[%clk 0:00:51.3]} 23... f6 {[%clk 0:02:27.7]} 24. Rd6 {[%clk 0:00:42.2]} 24...
Rh4+ {[%clk 0:02:22.7]} 25. Kg1 {[%clk 0:00:41.6]} 25... Bb7 {[%clk 0:02:18.6]}
26. Qf7 {[%clk 0:00:39.3]} 26... Rg4 {[%clk 0:02:12.5]} 27. Rxd7 {[%clk
0:00:25.2]} 27... Rxg2+ {[%clk 0:02:12.1]} 28. Kf1 {[%clk 0:00:25.3]} 28... Rg8
{[%clk 0:02:08.8]} 29. Rxb7 {[%clk 0:00:24.6]} 29... Rh2 {[%clk 0:02:09.4]} 30.
Bxf6 {[%clk 0:00:23.4]} 1-0

[Event "Early-Titled-Tuesday-Blitz-October-03-2023"]
[Site "Chess.com"]
[Date "2023.10.03"]
[Round "9"]
[White "ploxoi"]
[Black "azikom"]
[Result "0-1"]
[WhiteElo "2458"]
[BlackElo "2582"]
[TimeControl "180+1"]
[EndTime "9:44:02 PDT"]
[Termination "azikom won by resignation"]

1. d4 {[%clk 0:02:58.4]} 1... c6 {[%clk 0:03:00.9]} 2. c4 {[%clk 0:02:58.4]}
2... d5 {[%clk 0:03:01.8]} 3. Nf3 {[%clk 0:02:58.7]} 3... Nf6 {[%clk 0:03:01.7]}
4. e3 {[%clk 0:02:58.9]} 4... Bf5 {[%clk 0:03:00.6]} 5. Nc3 {[%clk 0:02:58.5]}
5... e6 {[%clk 0:03:00.5]} 6. Nh4 {[%clk 0:02:59.1]} 6... Be4 {[%clk 0:02:59.9]}
7. f3 {[%clk 0:02:40.4]} 7... Bg6 {[%clk 0:02:59.9]} 8. g3 {[%clk 0:02:40.3]}
8... Nbd7 {[%clk 0:02:59]} 9. Bg2 {[%clk 0:02:38.2]} 9... Be7 {[%clk 0:02:57.8]}
10. O-O {[%clk 0:02:38.4]} 10... dxc4 {[%clk 0:02:55.6]} 11. e4 {[%clk
0:02:34.2]} 11... O-O {[%clk 0:02:53.4]} 12. Nxg6 {[%clk 0:02:33.4]} 12... hxg6
{[%clk 0:02:53.1]} 13. a4 {[%clk 0:02:34.3]} 13... e5 {[%clk 0:02:47.3]} 14. Be3
{[%clk 0:02:28.7]} 14... a5 {[%clk 0:02:45.5]} 15. Re1 {[%clk 0:02:25.3]} 15...
exd4 {[%clk 0:02:43.6]} 16. Qxd4 {[%clk 0:02:26.2]} 16... Bc5 {[%clk 0:02:30.5]}
17. Qxc4 {[%clk 0:02:24.8]} 17... Bxe3+ {[%clk 0:02:30.6]} 18. Rxe3 {[%clk
0:02:25.7]} 18... Qb6 {[%clk 0:02:29.8]} 19. Qe2 {[%clk 0:02:23.6]} 19... Ne5
{[%clk 0:02:26.5]} 20. Qf2 {[%clk 0:02:05.8]} 20... Rfd8 {[%clk 0:02:24.5]} 21.
Rae1 {[%clk 0:01:58]} 21... Nd3 {[%clk 0:02:20.2]} 22. Rxd3 {[%clk 0:01:44.7]}
22... Qxf2+ {[%clk 0:02:20.2]} 23. Kxf2 {[%clk 0:01:45.6]} 23... Rxd3 {[%clk
0:02:20.6]} 24. Re2 {[%clk 0:01:35.2]} 24... Rad8 {[%clk 0:02:19.1]} 25. Ke1
{[%clk 0:01:35.6]} 25... g5 {[%clk 0:02:15.7]} 26. Kf2 {[%clk 0:01:23.4]} 26...
Rd2 {[%clk 0:02:12.6]} 27. Ke3 {[%clk 0:01:21.8]} 27... R8d3+ {[%clk 0:02:11.8]}
28. Kf2 {[%clk 0:01:21.1]} 28... Nd7 {[%clk 0:02:12.4]} 29. Ke1 {[%clk
0:01:18.8]} 29... Rxe2+ {[%clk 0:02:10.9]} 30. Kxe2 {[%clk 0:01:19.7]} 30... Rd4
{[%clk 0:02:11.3]} 31. Ke3 {[%clk 0:01:18]} 31... Rb4 {[%clk 0:02:10.9]} 32. Bh3
{[%clk 0:01:09.2]} 32... Nb6 {[%clk 0:02:10.8]} 33. f4 {[%clk 0:01:07.7]} 33...
gxf4+ {[%clk 0:02:10.5]} 34. gxf4 {[%clk 0:01:08.6]} 34... Nxa4 {[%clk
0:02:07.1]} 35. Ne2 {[%clk 0:01:07.6]} 35... Rxb2 {[%clk 0:02:06.4]} 36. e5
{[%clk 0:01:07.8]} 36... Nb6 {[%clk 0:02:05.7]} 37. Nd4 {[%clk 0:01:04.9]} 37...
Nd5+ {[%clk 0:02:03.4]} 38. Ke4 {[%clk 0:01:05.1]} 38... Rxh2 {[%clk 0:02:02.3]}
39. Bc8 {[%clk 0:01:03.9]} 39... Rh4 {[%clk 0:01:56.3]} 40. Ne2 {[%clk 0:01:00]}
40... Nxf4 {[%clk 0:01:53.8]} 41. Nxf4 {[%clk 0:00:58.3]} 0-1

[Event "Early-Titled-Tuesday-Blitz-October-03-2023"]
[Site "Chess.com"]
[Date "2023.10.03"]
[Round "9"]
[White "Jojo_898"]
[Black "JAN2404"]
[Result "1-0"]
[WhiteElo "2374"]
[BlackElo "2086"]
[TimeControl "180+1"]
[EndTime "9:44:18 PDT"]
[Termination "Jojo_898 won by resignation"]

1. e4 {[%clk 0:03:00.7]} 1... c5 {[%clk 0:02:58.9]} 2. Nf3 {[%clk 0:02:58.9]}
2... d6 {[%clk 0:02:59.4]} 3. c3 {[%clk 0:02:58.5]} 3... Nf6 {[%clk 0:02:58.9]}
4. Bd3 {[%clk 0:02:57.6]} 4... Nc6 {[%clk 0:02:50.4]} 5. h3 {[%clk 0:02:57.5]}
5... e6 {[%clk 0:02:47.5]} 6. O-O {[%clk 0:02:54]} 6... Be7 {[%clk 0:02:47.9]}
7. Bc2 {[%clk 0:02:52.6]} 7... O-O {[%clk 0:02:46.8]} 8. d4 {[%clk 0:02:53.1]}
8... cxd4 {[%clk 0:02:36.3]} 9. cxd4 {[%clk 0:02:52.5]} 9... e5 {[%clk
0:02:21.6]} 10. Nc3 {[%clk 0:02:44.8]} 10... h6 {[%clk 0:02:01.1]} 11. a3 {[%clk
0:02:23]} 11... Qb6 {[%clk 0:01:50.1]} 12. d5 {[%clk 0:02:07.9]} 12... Na5
{[%clk 0:01:24.8]} 13. Be3 {[%clk 0:02:05.9]} 13... Qxb2 {[%clk 0:01:12.5]} 14.
Qd3 {[%clk 0:01:55.9]} 14... Bd7 {[%clk 0:00:58.5]} 15. Rfb1 {[%clk 0:01:54.6]}
15... Qxa1 {[%clk 0:00:10.9]} 16. Rxa1 {[%clk 0:01:53.6]} 16... Rfc8 {[%clk
0:00:11.4]} 17. Rb1 {[%clk 0:01:46.9]} 17... Nc4 {[%clk 0:00:10.9]} 18. Rxb7
{[%clk 0:01:43.4]} 18... Nxa3 {[%clk 0:00:10.8]} 19. Ba4 {[%clk 0:01:39.7]}
19... Bxa4 {[%clk 0:00:05.4]} 20. Nxa4 {[%clk 0:01:37.8]} 1-0

[Event "Early-Titled-Tuesday-Blitz-October-03-2023"]
[Site "Chess.com"]
[Date "2023.10.03"]
[Round "9"]
[White "Duhless"]
[Black "AlmasRakhmatullaev"]
[Result "0-1"]
[WhiteElo "2956"]
[BlackElo "2823"]
[TimeControl "180+1"]
[EndTime "9:44:25 PDT"]
[Termination "AlmasRakhmatullaev won by resignation"]

1. d4 {[%clk 0:02:01.6]} 1... d5 {[%clk 0:02:59.8]} 2. Nf3 {[%clk 0:02:01.3]}
2... e6 {[%clk 0:02:59.2]} 3. c4 {[%clk 0:02:00.9]} 3... a6 {[%clk 0:02:59.5]}
4. g3 {[%clk 0:01:58.4]} 4... dxc4 {[%clk 0:02:59.6]} 5. Bg2 {[%clk 0:01:58.1]}
5... Nc6 {[%clk 0:02:59.8]} 6. O-O {[%clk 0:01:57.7]} 6... Rb8 {[%clk
0:03:00.4]} 7. b3 {[%clk 0:01:56.5]} 7... cxb3 {[%clk 0:02:58.4]} 8. axb3 {[%clk
0:01:56.4]} 8... Nf6 {[%clk 0:02:57.3]} 9. Bb2 {[%clk 0:01:56.4]} 9... Be7
{[%clk 0:02:50.7]} 10. Nbd2 {[%clk 0:01:55.2]} 10... O-O {[%clk 0:02:50.3]} 11.
Nc4 {[%clk 0:01:55]} 11... Nd7 {[%clk 0:02:42.1]} 12. e4 {[%clk 0:01:50.3]}
12... b5 {[%clk 0:02:42]} 13. Ne3 {[%clk 0:01:47.8]} 13... Bf6 {[%clk
0:02:22.6]} 14. e5 {[%clk 0:01:44.3]} 14... Be7 {[%clk 0:02:17.7]} 15. d5 {[%clk
0:01:45.2]} 15... exd5 {[%clk 0:02:14.5]} 16. Nxd5 {[%clk 0:01:46.1]} 16... Bb7
{[%clk 0:01:55.5]} 17. Qe2 {[%clk 0:01:22.1]} 17... Nb4 {[%clk 0:01:40.8]} 18.
Nxb4 {[%clk 0:01:13.4]} 18... Bxb4 {[%clk 0:01:41.7]} 19. Rad1 {[%clk
0:01:05.3]} 19... Qe7 {[%clk 0:01:36.7]} 20. e6 {[%clk 0:00:55.3]} 20... fxe6
{[%clk 0:01:30.2]} 21. Nd4 {[%clk 0:00:55.2]} 21... Bxg2 {[%clk 0:01:18.9]} 22.
Kxg2 {[%clk 0:00:56.1]} 22... Rb6 {[%clk 0:01:19.2]} 23. Qe4 {[%clk 0:00:49.7]}
23... Nf6 {[%clk 0:01:10.6]} 24. Qe2 {[%clk 0:00:48.7]} 24... c5 {[%clk
0:01:01]} 25. Nf5 {[%clk 0:00:47.3]} 25... Qb7+ {[%clk 0:01:01.5]} 0-1